fUST/lending_fUST_20240910
["ID","MTS","AMOUNT","RATE_DAILY","PERIOD"]
[337699895,1725976251885,-500.0,0.00018965,2]
[337699896,1725976251895,-502.75652234,0.00018965,2]
[337699897,1725976251904,-1892.71,0.00018965,2]
[337699898,1725976251915,-500.0,0.00018965,2]
[337699899,1725976251924,-500.0,0.00018965,2]
[337699900,1725976251934,-1131.5,0.00018965,2]
[337699901,1725976251944,-500.0,0.00018965,2]
[337699902,1725976251953,-1250.18,0.00018965,2]
[337699903,1725976251962,-716.75,0.00018965,2]
[337699904,1725976251972,-655.23,0.00018965,2]
[337699905,1725976251982,-500.0,0.00018965,2]
[337699906,1725976251991,-500.0,0.00018965,2]
[337699907,1725976252000,-566.18,0.00018965,2]
[337699908,1725976252010,-500.0,0.00018965,2]
[337699909,1725976252021,-500.0,0.00018965,2]
[337699910,1725976252031,-500.0,0.00018965,2]
[337699911,1725976252040,-500.0,0.00018965,2]
[337699912,1725976252050,-500.0,0.00018965,2]
[337699913,1725976252059,-1222.8,0.00018965,2]
[337699914,1725976252071,-500.0,0.00018965,2]
[337699915,1725976252081,-500.0,0.00018965,2]
[337699916,1725976252091,-500.0,0.00018965,2]
[337699917,1725976252103,-500.0,0.00018965,2]
[337699918,1725976252119,-500.0,0.00018965,2]
[337699919,1725976252129,-500.0,0.00018965,2]
[337699920,1725976252139,-500.0,0.00018965,2]
[337699921,1725976252149,-578.02,0.00018965,2]
[337699922,1725976252159,-502.88458984,0.00018965,2]
[337699923,1725976252169,-641.95,0.00018965,2]
[337699924,1725976252179,-500.0,0.00018965,2]
[337699925,1725976252189,-500.0,0.00018965,2]
[337699926,1725976252199,-500.0,0.00018965,2]
[337699927,1725976252209,-1320.62,0.00018965,2]
[337699928,1725976252219,-500.0,0.00018965,2]
[337699929,1725976252229,-500.0,0.00018965,2]
[337699930,1725976252238,-500.0,0.00018965,2]
[337699931,1725976252249,-500.0,0.00018965,2]
[337699932,1725976252258,-500.0,0.00018965,2]
[337699933,1725976252267,-500.0,0.00018965,2]
[337699934,1725976252278,-735.34,0.00018965,2]
[337699935,1725976252287,-29.43100135,0.00018965,2]
[337699936,1725976252560,-470.56899865,0.00018965,2]
[337699937,1725976252571,-500.0,0.00018965,2]
[337699938,1725976252581,-500.0,0.00018965,2]
[337699939,1725976252591,-500.0,0.00018965,2]
[337699940,1725976252600,-500.0,0.00018965,2]
[337699941,1725976252609,-554.47,0.00018965,2]
[337699942,1725976252619,-500.0,0.00018965,2]
[337699943,1725976252629,-500.0,0.00018965,2]
[337699944,1725976252639,-364.34491878,0.00018965,2]
[337699945,1725976252649,-500.0,0.00018965,2]
[337699946,1725976252659,-937.82,0.00018965,2]
[337699947,1725976252669,-500.0,0.00018965,2]
[337699948,1725976252678,-500.0,0.00018965,2]
[337699949,1725976252688,-500.0,0.00018965,2]
[337699950,1725976252697,-184.35432735,0.00018965,2]
[337699951,1725976252708,-877.84,0.00018965,2]
[337699952,1725976252720,-500.0,0.00018965,2]
[337699953,1725976252730,-609.43039107,0.00018965,2]
[337699954,1725976252740,-500.0,0.00018965,2]
[337699955,1725976252750,-500.0,0.00018965,2]
[337699956,1725976252759,-1086.75,0.00018965,2]
[337699957,1725976252769,-980.26,0.00018965,2]
[337699958,1725976252780,-500.0,0.00018965,2]
[337699959,1725976252789,-500.0,0.00018965,2]
[337699960,1725976252798,-500.0,0.00018965,2]
[337699961,1725976252809,-500.0,0.00018965,2]
[337699962,1725976252818,-500.0,0.00018965,2]
[337699963,1725976252828,-833.34,0.00018965,2]
[337699964,1725976252838,-920.92,0.00018965,2]
[337699965,1725976252848,-791.74,0.00018965,2]
[337699966,1725976252857,-367.3980524,0.00018965,2]
[337699967,1725976252875,-132.6019476,0.00018965,2]
[337699968,1725976252885,-500.0,0.00018965,2]
[337699969,1725976252895,-780.94,0.00018965,2]
[337699970,1725976252905,-500.0,0.00018965,2]
[337699971,1725976252915,-500.0,0.00018965,2]
[337699972,1725976252925,-500.0,0.00018965,2]
[337699973,1725976252934,-500.0,0.00018965,2]
[337699974,1725976252943,-703.84,0.00018965,2]
[337699975,1725976252953,-500.0,0.00018965,2]
[337699976,1725976252963,-500.0,0.00018965,2]
[337699977,1725976252972,-500.0,0.00018965,2]
[337699978,1725976252982,-500.0,0.00018965,2]
[337699979,1725976252992,-1844.49,0.00018965,2]
[337699980,1725976253001,-500.0,0.00018965,2]
[337699981,1725976253011,-500.0,0.00018965,2]
[337699982,1725976253154,-500.0,0.00018965,2]
[337699983,1725976253165,-364.15170314,0.00018965,2]
[337699984,1725976253175,-2006.21,0.00018965,2]
[337699985,1725976253186,-21.24442025,0.00018965,2]
[337699986,1725976253198,-483.57773603,0.00018965,2]
[337699987,1725976253208,-1004.6,0.00018965,2]
[337699988,1725976253217,-500.0,0.00018965,2]
[337699989,1725976253227,-500.0,0.00018965,2]
[337699990,1725976253237,-1245.61,0.00018965,2]
[337699991,1725976253246,-79.686493,0.00018965,2]
[337699992,1725976253263,-420.313507,0.00018965,2]
[337699993,1725976253274,-568.39597007,0.00018965,2]
[337699994,1725976253284,-500.0,0.00018965,2]
[337699995,1725976253293,-677.39,0.00018965,2]
[337699996,1725976253303,-1003.63,0.00018965,2]
[337699997,1725976253313,-500.0,0.00018965,2]
[337699998,1725976253326,-500.0,0.00018965,2]
[337699999,1725976253335,-1239.39,0.00018965,2]
[337700000,1725976253345,-500.0,0.00018965,2]
[337700001,1725976253355,-500.0,0.00018965,2]
[337700002,1725976253365,-500.0,0.00018965,2]
[337700003,1725976253375,-500.0,0.00018965,2]
[337700004,1725976253384,-500.0,0.00018965,2]
[337700005,1725976253394,-872.0,0.00018965,2]
[337700006,1725976253405,-500.0,0.00018965,2]
[337700007,1725976253415,-500.0,0.00018965,2]
[337700008,1725976253425,-500.0,0.00018965,2]
[337700009,1725976253434,-500.0,0.00018965,2]
[337700010,1725976253444,-1880.86,0.00018965,2]
[337700011,1725976253454,-1331.59,0.00018965,2]
[337700012,1725976253464,-633.47894258,0.00018965,2]
[337700013,1725976253475,-3690.11,0.00018965,2]
[337700014,1725976253485,-500.0,0.00018965,2]
[337700015,1725976253495,-500.0,0.00018965,2]
[337700016,1725976253508,-716.73,0.00018965,2]
[337700017,1725976253517,-496.53764429,0.00018965,2]
[337700018,1725976253527,-500.0,0.00018965,2]
[337700019,1725976253537,-1946.45,0.00018965,2]
[337700020,1725976253551,-272.30336726,0.00018965,2]
[337700021,1725976253560,-500.0,0.00018965,2]
[337700022,1725976253573,-1499.47,0.00018965,2]
[337700023,1725976253583,-500.0,0.00018965,2]
[337700024,1725976253593,-500.0,0.00018965,2]
[337700025,1725976253602,-500.0,0.00018965,2]
[337700026,1725976253612,-500.0,0.00018965,2]
[337700027,1725976253623,-2121.0,0.00018965,2]
[337700028,1725976253633,-703.81,0.00018965,2]
[337700029,1725976253644,-500.0,0.00018965,2]
[337700030,1725976253654,-500.0,0.00018965,2]
[337700031,1725976253664,-510.91589276,0.00018965,2]
[337700032,1725976253674,-500.0,0.00018965,2]
[337700033,1725976253684,-500.0,0.00018965,2]
[337700034,1725976253694,-500.0,0.00018965,2]
[337700035,1725976253704,-500.0,0.00018965,2]
[337700036,1725976253714,-587.4,0.00018965,2]
[337700037,1725976253724,-518.12,0.00018965,2]
[337700038,1725976253734,-500.0,0.00018965,2]
[337700039,1725976253744,-684.84,0.00018965,2]
[337700040,1725976253755,-500.0,0.00018965,2]
[337700041,1725976253765,-811.13,0.00018965,2]
[337700042,1725976253775,-1273.41,0.00018965,2]
[337700043,1725976253785,-818.86,0.00018965,2]
[337700044,1725976253796,-884.31,0.00018965,2]
[337700045,1725976253808,-500.0,0.00018965,2]
[337700046,1725976253818,-306.91165179,0.00018965,2]
[337700047,1725976254305,-531.09,0.00018671,2]
[337700048,1725976254316,-151.0,0.00018687,2]
[337700049,1725976254327,-279.763232,0.00018688,2]
[337700050,1725976254336,-531.09,0.00018945,2]
[337700051,1725976254346,-193.08834821,0.00018965,2]
[337700052,1725976254356,-500.0,0.00018965,2]
[337700053,1725976254366,-1041.68,0.00018965,2]
[337700054,1725976254375,-500.0,0.00018965,2]
[337700055,1725976254385,-555.47,0.00018965,2]
[337700056,1725976254394,-500.0,0.00018965,2]
[337700057,1725976254403,-1055.04,0.00018965,2]
[337700058,1725976254413,-503.52,0.00018965,2]
[337700059,1725976254423,-2650.97,0.00018965,2]
[337700060,1725976254432,-606.38484735,0.00018965,2]
[337700061,1725976254442,-500.0,0.00018965,2]
[337700062,1725976254451,-500.0,0.00018965,2]
[337700063,1725976254461,-1904.32,0.00018965,2]
[337700064,1725976254471,-662.43,0.00018965,2]
[337700065,1725976254480,-500.0,0.00018965,2]
[337700066,1725976254491,-4885.63,0.00018965,2]
[337700067,1725976254502,-563.74,0.00018965,2]
[337700068,1725976254511,-500.0,0.00018965,2]
[337700069,1725976254521,-500.0,0.00018965,2]
[337700070,1725976254530,-500.0,0.00018965,2]
[337700071,1725976254540,-544.08118826,0.00018965,2]
[337700072,1725976254551,-500.0,0.00018965,2]
[337700073,1725976254560,-500.0,0.00018965,2]
[337700074,1725976254583,-500.0,0.00018965,2]
[337700075,1725976254593,-500.0,0.00018965,2]
[337700076,1725976254602,-500.0,0.00018965,2]
[337700077,1725976254612,-1264.35,0.00018965,2]
[337700078,1725976254622,-500.0,0.00018965,2]
[337700079,1725976254632,-533.55,0.00018965,2]
[337700080,1725976254642,-528.47,0.00018965,2]
[337700081,1725976254652,-500.0,0.00018965,2]
[337700082,1725976254663,-7305.29,0.00018965,2]
[337700083,1725976254673,-178.54290633,0.00018965,2]
[337700084,1725976254682,-506.77090354,0.00018965,2]
[337700085,1725976254692,-500.0,0.00018965,2]
[337700086,1725976254701,-500.0,0.00018965,2]
[337700087,1725976254710,-592.91,0.00018965,2]
[337700088,1725976254720,-500.0,0.00018965,2]
[337700089,1725976254730,-735.11,0.00018965,2]
[337700090,1725976254739,-1245.37,0.00018965,2]
[337700091,1725976254749,-500.0,0.00018965,2]
[337700092,1725976254759,-500.0,0.00018965,2]
[337700093,1725976254769,-1005.49,0.00018965,2]
[337700094,1725976254779,-684.91,0.00018965,2]
[337700095,1725976254788,-1662.09,0.00018965,2]
[337700096,1725976254799,-502.00305131,0.00018965,2]
[337700097,1725976254808,-500.0,0.00018965,2]
[337700098,1725976254821,-553.59,0.00018965,2]
[337700099,1725976254831,-1301.93,0.00018965,2]
[337700100,1725976254840,-500.0,0.00018965,2]
[337700101,1725976254850,-500.0,0.00018965,2]
[337700102,1725976254861,-333.40626722,0.00018965,2]
[337700103,1725976254870,-718.86,0.00018965,2]
[337700104,1725976254880,-500.0,0.00018965,2]
[337700105,1725976254889,-500.0,0.00018965,2]
[337700106,1725976254899,-907.37,0.00018965,2]
[337700107,1725976254909,-696.39,0.00018965,2]
[337700108,1725976254920,-500.0,0.00018965,2]
[337700109,1725976254931,-500.0,0.00018965,2]
[337700110,1725976254942,-722.9,0.00018965,2]
[337700111,1725976254953,-500.0,0.00018965,2]
[337700112,1725976254963,-671.04,0.00018965,2]
[337700113,1725976254973,-500.0,0.00018965,2]
[337700114,1725976254983,-500.0,0.00018965,2]
[337700115,1725976254992,-658.92,0.00018965,2]
[337700116,1725976255003,-1327.55,0.00018965,2]
[337700117,1725976255012,-500.0,0.00018965,2]
[337700118,1725976255021,-607.75,0.00018965,2]
[337700119,1725976255031,-500.0,0.00018965,2]
[337700120,1725976255040,-548.91,0.00018965,2]
[337700121,1725976255050,-567.1,0.00018965,2]
[337700122,1725976255060,-500.0,0.00018965,2]
[337700123,1725976255073,-762.04,0.00018965,2]
[337700124,1725976255082,-1868.77,0.00018965,2]
[337700125,1725976255091,-500.0,0.00018965,2]
[337700126,1725976255276,-803.33,0.00018965,2]
[337700127,1725976255286,-500.0,0.00018965,2]
[337700128,1725976255296,-500.0,0.00018965,2]
[337700129,1725976255305,-807.68,0.00018965,2]
[337700130,1725976255314,-1084.7,0.00018965,2]
[337700131,1725976255327,-742.67,0.00018965,2]
[337700132,1725976255337,-500.0,0.00018965,2]
[337700133,1725976255346,-500.0,0.00018965,2]
[337700134,1725976255356,-222.07947055,0.00018965,2]
[337700135,1725976255366,-551.64,0.00018965,2]
[337700136,1725976255375,-500.0,0.00018965,2]
[337700137,1725976255385,-1809.05,0.00018965,2]
[337700138,1725976255394,-500.0,0.00018965,2]
[337700139,1725976255404,-500.0,0.00018965,2]
[337700140,1725976255414,-500.0,0.00018965,2]
[337700141,1725976255423,-500.0,0.00018965,2]
[337700142,1725976255434,-500.0,0.00018965,2]
[337700143,1725976255443,-1164.51,0.00018965,2]
[337700144,1725976255453,-500.0,0.00018965,2]
[337700145,1725976255463,-585.67677082,0.00018965,2]
[337700146,1725976255472,-500.0,0.00018965,2]
[337700147,1725976255482,-1078.95,0.00018965,2]
[337700148,1725976255491,-500.0,0.00018965,2]
[337700149,1725976255503,-500.0,0.00018965,2]
[337700150,1725976255513,-500.0,0.00018965,2]
[337700151,1725976255525,-500.0,0.00018965,2]
[337700152,1725976255536,-1370.16,0.00018965,2]
[337700153,1725976255547,-500.0,0.00018965,2]
[337700154,1725976255557,-339.08060502,0.00018966,2]
[337700155,1725976255567,-500.0,0.00018967,2]
[337700156,1725976255580,-500.0,0.00018967,2]
[337700157,1725976255589,-500.0,0.00018967,2]
[337700158,1725976255599,-500.0,0.00018967,2]
[337700159,1725976255608,-500.0,0.00018967,2]
[337700160,1725976255617,-500.0,0.00018967,2]
[337700161,1725976255627,-500.0,0.00018967,2]
[337700162,1725976255636,-831.7,0.00018969,2]
[337700163,1725976255646,-500.0,0.00018969,2]
[337700164,1725976255656,-547.62,0.00018969,2]
[337700165,1725976255666,-862.27,0.00018969,2]
[337700166,1725976255675,-500.0,0.00018969,2]
[337700167,1725976255685,-500.0,0.00018969,2]
[337700168,1725976255694,-590.4,0.00018969,2]
[337700169,1725976255705,-500.0,0.00018969,2]
[337700170,1725976255715,-798.61,0.00018969,2]
[337700171,1725976255724,-500.0,0.00018969,2]
[337700172,1725976255733,-500.0,0.00018969,2]
[337700173,1725976255742,-1592.89,0.00018969,2]
[337700174,1725976255752,-500.0,0.00018969,2]
[337700175,1725976255763,-418.17010016,0.00019,2]
[337700176,1725976255773,-150.112233,0.00019,2]
[337700177,1725976255783,-150.112233,0.00019,2]
[337700178,1725976255792,-150.112233,0.00019,2]
[337700179,1725976255802,-317.8392579,0.00019096,2]
[337700180,1725976255811,-150.112233,0.000191,2]
[337700181,1725976255822,-150.112233,0.000191,2]
[337700182,1725976255831,-150.112233,0.000191,2]
[337700183,1725976255841,-150.112233,0.000191,2]
[337700184,1725976255850,-2330.85,0.00019118,2]
[337700185,1725976255860,-5276.42,0.00019118,2]
[337700186,1725976255869,-1007.74,0.00019118,2]
[337700187,1725976255879,-1170.54,0.00019118,2]
[337700188,1725976255889,-1127.67,0.00019118,2]
[337700189,1725976255898,-961.92,0.00019118,2]
[337700190,1725976255907,-903.04,0.00019118,2]
[337700191,1725976255918,-7720.70596467,0.0001912,2]
[337700192,1725976255927,-153.0,0.00019123,2]
[337700193,1725976255937,-500.0,0.00019136,2]
[337700194,1725976255946,-500.0,0.00019136,2]
[337700195,1725976255956,-500.0,0.00019136,2]
[337700196,1725976255965,-500.0,0.00019136,2]
[337700197,1725976255975,-500.0,0.00019136,2]
[337700198,1725976255984,-500.0,0.00019136,2]
[337700199,1725976255995,-512.08428796,0.00019136,2]
[337700200,1725976256004,-500.0,0.00019136,2]
[337700201,1725976256014,-500.0,0.00019136,2]
[337700202,1725976256023,-177.49335652,0.00019136,2]
[337700203,1725976256033,-549.27,0.00019136,2]
[337700204,1725976256042,-500.0,0.00019136,2]
[337700205,1725976256052,-500.0,0.00019136,2]
[337700206,1725976256061,-1153.6,0.00019136,2]
[337700207,1725976256072,-278.16,0.00019136,2]
[337700208,1725976256081,-500.0,0.00019136,2]
[337700209,1725976256091,-500.0,0.00019136,2]
[337700210,1725976256100,-4306.19,0.00019136,2]
[337700211,1725976256110,-7606.82,0.00019136,2]
[337700212,1725976256119,-502.26,0.00019136,2]
[337700213,1725976256137,-500.0,0.00019136,2]
[337700214,1725976256156,-972.5,0.00019136,2]
[337700215,1725976256171,-500.0,0.00019136,2]
[337700216,1725976256190,-3973.83,0.00019136,2]
[337700217,1725976256210,-1276.65,0.00019136,2]
[337700218,1725976256228,-500.0,0.00019136,2]
[337700219,1725976256243,-1460.35,0.00019136,2]
[337700220,1725976256261,-500.0,0.00019136,2]
[337700221,1725976256277,-500.0,0.00019136,2]
[337700222,1725976256292,-500.0,0.00019136,2]
[337700223,1725976256307,-500.0,0.00019136,2]
[337700224,1725976256324,-1486.84,0.00019136,2]
[337700225,1725976256344,-500.0,0.00019136,2]
[337700226,1725976256356,-500.0,0.00019136,2]
[337700227,1725976256370,-761.34,0.00019136,2]
[337700228,1725976256388,-583.93,0.00019136,2]
[337700229,1725976256403,-500.0,0.00019136,2]
[337700230,1725976256421,-500.0,0.00019136,2]
[337700231,1725976256433,-500.0,0.00019136,2]
[337700232,1725976256447,-732.5,0.00019136,2]
[337700233,1725976256461,-299.99787004,0.00019136,2]
[337700234,1725976256477,-1689.06,0.00019136,2]
[337700235,1725976256492,-612.99,0.00019136,2]
[337700236,1725976256509,-1506.18,0.00019136,2]
[337700237,1725976256523,-500.0,0.00019136,2]
[337700238,1725976256536,-500.0,0.00019136,2]
[337700239,1725976256551,-500.0,0.00019136,2]
[337700240,1725976256565,-500.0,0.00019136,2]
[337700241,1725976256586,-500.0,0.00019136,2]
[337700242,1725976256601,-570.72,0.00019136,2]
[337700243,1725976256615,-500.0,0.00019136,2]
[337700244,1725976256630,-720.73,0.00019136,2]
[337700245,1725976256645,-658.77,0.00019136,2]
[337700246,1725976256659,-500.0,0.00019136,2]
[337700247,1725976256673,-500.0,0.00019136,2]
[337700248,1725976256688,-500.0,0.00019136,2]
[337700249,1725976256702,-500.0,0.00019136,2]
[337700250,1725976256715,-500.0,0.00019136,2]
[337700251,1725976256730,-528.12693612,0.00019136,2]
[337700252,1725976256745,-500.0,0.00019136,2]
[337700253,1725976256760,-1225.8,0.00019136,2]
[337700254,1725976256774,-500.0,0.00019136,2]
[337700255,1725976256787,-630.49304044,0.00019136,2]
[337700256,1725976256802,-53101.07,0.00019136,2]
[337700257,1725976256815,-1890.07,0.00019136,2]
[337700258,1725976256831,-500.0,0.00019136,2]
[337700259,1725976256848,-500.0,0.00019136,2]
[337700260,1725976256863,-2334.75,0.00019136,2]
[337700261,1725976256877,-500.0,0.00019136,2]
[337700262,1725976256892,-5356.26135931,0.00019151,2]
[337700263,1725976256906,-1000.0,0.00019178,2]
[337700264,1725976256921,-185.291931,0.00019178,2]
[337700265,1725976256935,-180.173476,0.00019178,2]
[337700266,1725976256950,-1629.544778,0.00019178,2]
[337700267,1725976256964,-1629.544778,0.00019178,2]
[337700268,1725976256979,-1629.544778,0.00019178,2]
[337700269,1725976256994,-1629.544778,0.00019178,2]
[337700270,1725976257009,-1629.544778,0.00019178,2]
[337700271,1725976257025,-1629.544778,0.00019178,2]
[337700272,1725976257039,-1629.544778,0.00019178,2]
[337700273,1725976257053,-1629.544778,0.00019178,2]
[337700274,1725976257067,-1629.544778,0.00019178,2]
[337700275,1725976257084,-1629.544778,0.00019178,2]
[337700276,1725976257094,-1629.544778,0.00019178,2]
[337700277,1725976257103,-1629.544778,0.00019178,2]
[337700278,1725976257115,-1629.544778,0.00019178,2]
[337700279,1725976257127,-1629.544778,0.00019178,2]
[337700280,1725976257137,-1629.544778,0.00019178,2]
[337700281,1725976257147,-1629.544778,0.00019178,2]
[337700282,1725976257156,-1629.544778,0.00019178,2]
[337700283,1725976257165,-1629.544778,0.00019178,2]
[337700284,1725976257175,-1629.544778,0.00019178,2]
[337700285,1725976257185,-1629.544778,0.00019178,2]
[337700286,1725976257195,-150.112233,0.000192,2]
[337700287,1725976257204,-150.112233,0.000192,2]
[337700288,1725976257214,-500.0,0.00019219,2]
[337700290,1725976257223,-500.0,0.00019219,2]
[337700291,1725976257232,-500.0,0.00019219,2]
[337700292,1725976257243,-500.0,0.00019219,2]
[337700293,1725976257254,-500.0,0.00019219,2]
[337700294,1725976257265,-1255.72,0.00019219,2]
[337700295,1725976257275,-500.0,0.00019219,2]
[337700296,1725976257286,-645.18,0.00019219,2]
[337700297,1725976257298,-500.0,0.00019219,2]
[337700298,1725976257309,-500.0,0.00019219,2]
[337700299,1725976257323,-532.84,0.00019219,2]
[337700300,1725976257334,-500.0,0.00019219,2]
[337700301,1725976257343,-1498.78,0.00019219,2]
[337700302,1725976257355,-500.0,0.00019219,2]
[337700303,1725976257664,-500.0,0.00019219,2]
[337700304,1725976257680,-1432.3,0.00019219,2]
[337700305,1725976257690,-500.0,0.00019219,2]
[337700306,1725976257700,-500.0,0.00019219,2]
[337700307,1725976257710,-501.72,0.00019219,2]
[337700308,1725976257719,-2341.06,0.00019219,2]
[337700309,1725976257731,-500.0,0.00019219,2]
[337700310,1725976257741,-1072.81,0.00019219,2]
[337700311,1725976257751,-1013.82,0.00019219,2]
[337700312,1725976257760,-500.0,0.00019219,2]
[337700313,1725976257769,-664.51,0.00019219,2]
[337700314,1725976257778,-1720.84,0.00019219,2]
[337700315,1725976257787,-985.16,0.00019219,2]
[337700316,1725976257796,-500.0,0.00019219,2]
[337700317,1725976257806,-617.24,0.00019219,2]
[337700318,1725976257815,-847.0,0.00019219,2]
[337700319,1725976257825,-500.0,0.00019219,2]
[337700320,1725976257835,-818.73,0.00019219,2]
[337700321,1725976257843,-1644.85,0.00019219,2]
[337700322,1725976257853,-500.0,0.00019219,2]
[337700323,1725976257862,-4462.87,0.00019219,2]
[337700324,1725976257871,-500.0,0.00019219,2]
[337700325,1725976257881,-500.0,0.00019219,2]
[337700326,1725976257890,-500.0,0.00019219,2]
[337700327,1725976257899,-959.05,0.00019219,2]
[337700328,1725976257909,-1589.59,0.00019219,2]
[337700329,1725976257919,-500.0,0.00019219,2]
[337700330,1725976257928,-500.0,0.00019219,2]
[337700331,1725976257937,-2076.33,0.00019219,2]
[337700332,1725976257947,-386.61339865,0.00019219,2]
[337700333,1725976257956,-500.0,0.00019219,2]
[337700334,1725976257965,-3470.69,0.00019219,2]
[337700335,1725976257974,-708.86,0.00019219,2]
[337700336,1725976257984,-500.0,0.00019219,2]
[337700337,1725976257994,-1058.33,0.00019219,2]
[337700338,1725976258003,-500.0,0.00019219,2]
[337700339,1725976258012,-500.0,0.00019219,2]
[337700340,1725976258022,-2034.81,0.00019219,2]
[337700341,1725976258031,-4565.46,0.00019219,2]
[337700342,1725976258040,-500.0,0.00019219,2]
[337700343,1725976258049,-1077.97,0.00019219,2]
[337700344,1725976258059,-1571.36,0.00019219,2]
[337700345,1725976258068,-500.0,0.00019219,2]
[337700346,1725976258079,-621.35,0.00019219,2]
[337700347,1725976258089,-3511.98,0.00019219,2]
[337700348,1725976258098,-589.46,0.00019219,2]
[337700349,1725976258107,-1849.39,0.00019219,2]
[337700350,1725976258117,-500.0,0.00019219,2]
[337700351,1725976258127,-789.46,0.00019219,2]
[337700352,1725976258136,-1738.8,0.00019219,2]
[337700353,1725976258145,-500.0,0.00019219,2]
[337700354,1725976258154,-503.94,0.00019219,2]
[337700355,1725976258163,-667.27,0.00019219,2]
[337700356,1725976258174,-500.0,0.00019219,2]
[337700357,1725976258184,-500.0,0.00019219,2]
[337700358,1725976258193,-500.0,0.00019219,2]
[337700359,1725976258202,-833.59,0.00019219,2]
[337700360,1725976258213,-701.54,0.00019219,2]
[337700361,1725976258222,-500.0,0.00019219,2]
[337700362,1725976258231,-41369.73,0.00019219,2]
[337700363,1725976258240,-500.0,0.00019219,2]
[337700364,1725976258250,-1029.38,0.00019219,2]
[337700365,1725976258259,-500.0,0.00019219,2]
[337700366,1725976258269,-500.0,0.00019219,2]
[337700367,1725976258278,-751.39,0.00019219,2]
[337700368,1725976258287,-553.37,0.00019219,2]
[337700369,1725976258296,-500.0,0.00019219,2]
[337700370,1725976258305,-500.0,0.00019219,2]
[337700371,1725976258314,-500.0,0.00019219,2]
[337700372,1725976258325,-500.0,0.00019219,2]
[337700373,1725976258335,-956.02,0.00019219,2]
[337700374,1725976258345,-531.09,0.00019219,2]
[337700375,1725976258354,-6258.42,0.0001922,2]
[337700376,1725976258363,-753.3,0.0001922,2]
[337700377,1725976258372,-2069.06,0.0001922,2]
[337700378,1725976258382,-500.0,0.0001922,2]
[337700379,1725976258391,-1429.11,0.0001922,2]
[337700380,1725976258400,-2096.69,0.0001922,2]
[337700381,1725976258410,-4274.12,0.0001922,2]
[337700382,1725976258419,-852.66,0.0001922,2]
[337700383,1725976258428,-500.0,0.0001922,2]
[337700384,1725976258438,-1568.08,0.0001922,2]
[337700385,1725976258447,-700.72,0.0001922,2]
[337700386,1725976258457,-1293.67,0.0001922,2]
[337700387,1725976258466,-1430.43,0.0001922,2]
[337700388,1725976258476,-500.0,0.00019234,2]
[337700389,1725976258485,-500.0,0.00019234,2]
[337700390,1725976258495,-500.0,0.00019234,2]
[337700391,1725976258506,-561.11,0.00019234,2]
[337700392,1725976258520,-500.0,0.00019234,2]
[337700393,1725976258529,-72041.91,0.00019238,2]
[337700394,1725976258538,-666.75,0.00019238,2]
[337700395,1725976258548,-500.0,0.00019238,2]